Cogmind - Beta 15 *** ADVENTURER MODE // 2025.10.14 @ 15:18:06 Player: Akogishi Result: Destroyed by C-40 Crusher with Compactor Performance ------------- Evolutions (4) 2000 Regions Visited (7) 1400 Robots Destroyed (56) 280 Value Destroyed (1583) 1583 Prototype IDs (5) 100 Alien Tech Used (0) 0 Bonus (500) 500 TOTAL SCORE: 5863 Bonus ------- Entered DSFs 500 Cogmind --------- Core Integrity 0/850 Matter 102/300 Energy 100/100 System Corruption 0% Temperature Cool (0) Movement Core (50) Location -6/Waste Parts ------- > --- POWER (1) -------- (None) > --- PROPULSION (5) --- (None) > --- UTILITY (7) ------ (None) > --- WEAPON (2) ------- (None) > --- INVENTORY (5) ---- IFF Parser Core Analyzer Improved Propulsion Shielding Heavy Armor Plating Peak State ------------ > --- POWER ------------ Light Fission Core > --- PROPULSION ------- Light Treads Light Treads Light Treads Heavy Siege Treads > --- UTILITY ---------- Cryofiber Web High-capacity Storage Unit Advanced Targeting Computer Advanced Targeting Computer Target Analyzer Heavy Armor Plating > --- WEAPON ----------- Shock Rifle Shock Rifle > --- INVENTORY -------- Light Fission Core Armored Treads Armored Treads Improved Heat Sink High-capacity Storage Unit Advanced Visual Processing Unit Advanced Signal Interpreter IFF Parser Target Analyzer Core Analyzer Core Analyzer Improved Propulsion Shielding Heavy Armor Plating Hacking Suite Shock Rifle Heavy Particle Cannon Assault Cannon Improved Proton Missile Launcher Improved Proton Missile Launcher [Rating: 54] Favorites ----------- Power Ion Engine Engine Ion Engine Power Core Nuclear Core Propulsion Light Treads Treads Light Treads Leg Aluminum Leg Utility High-capacity Storage Unit Device Disposable Heat Sink Storage High-capacity Storage Unit Processor Advanced Targeting Computer Protection Hardened Medium Armor Plating Weapon Light EM Pulse Cannon Energy Gun Heavy EM Shotgun Energy Cannon Light EM Pulse Cannon Ballistic Gun Light Assault Rifle Ballistic Cannon Assault Cannon Launcher Grenade Launcher Build | -11 -10 -9 -8 -7 -7 -6 -6 ------- Run | Yrd Mat Mat Mat Fac DSF Fac Was Slots Evolved 8 | . . 2 2 2 . 2 . Power . | . . . . . . . . Propulsion 3 | . . 2 . . . 1 . Utility 5 | . . . 2 2 . 1 . Weapon . | . . . . . . . . Parts Attached 56 | 7 9 8 18 3 5 4 2 Power 7 | 1 1 1 2 . 1 . 1 Engine 4 | 1 1 1 1 . . . . Core 3 | . . . 1 . 1 . 1 Reactor . | . . . . . . . . Propulsion 12 | 2 2 3 3 . . 1 1 Treads 10 | . 2 3 3 . . 1 1 Leg 2 | 2 . . . . . . . Wheel . | . . . . . . . . Hover . | . . . . . . . . Flight . | . . . . . . . . Utility 13 | 2 2 1 5 2 . 1 . Device 5 | 1 1 1 2 . . . . Storage 2 | 1 1 . . . . . . Processor 4 | . . . 3 1 . . . Hackware . | . . . . . . . . Protection 2 | . . . . 1 . 1 . Artifact . | . . . . . . . . Weapon 24 | 2 4 3 8 1 4 2 . Energy Gun 8 | . 1 . 5 . . 2 . Energy Cannon 4 | . 2 . 2 . . . . Ballistic Gun 2 | 2 . . . . . . . Ballistic Cannon 5 | . . 1 . 1 3 . . Launcher 5 | . 1 2 1 . 1 . . Special Weapon . | . . . . . . . . Impact Weapon . | . . . . . . . . Slashing Weapon . | . . . . . . . . Piercing Weapon . | . . . . . . . . Special Melee Weapon . | . . . . . . . . Unidentified Prototypes 2 | . . . 2 . . . . Parts Lost 7 | . . . . . . . 7 Power 1 | . . . . . . . 1 Propulsion 3 | . . . . . . . 3 Utility 3 | . . . . . . . 3 Weapon . | . . . . . . . . Highest Loss Streak 6 | . . . . . . . 6 To Critical Strikes 1 | . . . . . . . 1 Average Backups 17 | 4 15 19 19 18 18 18 15 Power 1 | . 1 1 1 1 1 1 . Propulsion 3 | 2 4 4 3 3 3 2 1 Utility 8 | . 7 11 9 7 8 9 9 Weapon 3 | . 1 3 5 6 6 5 3 Tool/Special . | . . . . . . . . Unused Backups 35 | . 6 3 10 . 2 . 14 Power 1 | . . 1 . . . . . Propulsion 5 | . 2 . 2 . . . 1 Utility 23 | . 3 1 7 . 2 . 10 Weapon 6 | . 1 1 1 . . . 3 Tool/Special . | . . . . . . . . Average Slot Usage (%) 96 | . 99 99 98 97 98 91 71 Engine 7 | . 14 11 4 . . . . Core 2 | . . . 4 7 7 6 5 Treads 28 | . 20 43 34 30 30 33 23 Leg 2 | . 7 . . . . . . Device 11 | . 14 11 13 7 7 6 5 Storage 10 | . 14 11 9 7 7 6 5 Processor 8 | . . . 13 21 23 20 18 Protection 1 | . . . . 7 7 4 5 Energy Gun 6 | . 7 . 11 . . 3 4 Energy Cannon 8 | . 12 16 3 7 2 . 1 Ballistic Gun 2 | . 5 . . . . . . Ballistic Cannon 1 | . . . . 3 9 4 1 Launcher 2 | . 2 5 2 2 1 4 . Peak Build Rating 54 | 9 13 14 31 35 37 42 54 Average Rating 20 | 6 11 13 25 33 34 38 43 On Entrance 21 | . 9 12 13 27 35 36 42 Naked Turns 24 | . . . . . . . 24 Heaviest Build 74 | 11 54 54 59 68 68 69 74 Greatest Support 130 | 20 40 80 80 80 80 100 130 Greatest Overweight (x) 3 | 3 2 . . . . . . Average Overweight (x) . | . . . . . . . . Largest Inventory Capacity 20 | 8 20 20 20 20 20 20 20 Average Capacity 18 | 7 18 20 20 20 20 20 17 Most Carried 20 | 7 20 20 20 19 20 20 20 Average Carried 17 | 4 15 19 19 18 18 19 16 Final Capacity 20 | 8 20 20 20 20 20 20 5 Final Carried 20 | 7 20 20 19 19 20 20 5 Class Distribution -------------------- 100% | Mutant Dominant Class ---------------- Mutant | -10/Materials Mutant | -9/Materials Mutant | -8/Materials Mutant | -7/Factory Mutant | -7/DSF Mutant | -6/Factory Mutant | -6/Waste Resources | -11 -10 -9 -8 -7 -7 -6 -6 ----------- Run | Yrd Mat Mat Mat Fac DSF Fac Was Matter Collected 1289 | 234 295 151 357 . 252 . . Remotely . | . . . . . . . . Salvage Created 1875 | 91 390 539 553 . 302 . . Parts 128 | 8 31 32 38 . 19 . . Haulers Intercepted 6 | . 2 1 3 . . . . Recyclers Shooed 1 | . . 1 . . . . . Parts Field Recycled . | . . . . . . . . Retrieved Matter . | . . . . . . . . Parts Self-Destructed . | . . . . . . . . Prevented . | . . . . . . . . Kills | -11 -10 -9 -8 -7 -7 -6 -6 ------- Run | Yrd Mat Mat Mat Fac DSF Fac Was Combat Hostiles Destroyed 38 | . 10 11 9 . 8 . . Guns 5 | . 2 . 3 . . . . Cannons 15 | . 3 6 2 . 4 . . AOE 18 | . 5 5 4 . 4 . . Classes Destroyed 14 | 2 6 1 3 . 2 . . Worker 2 | . 2 . . . . . . Builder 2 | . 1 . 1 . . . . Tunneler 2 | 2 . . . . . . . Hauler 6 | . 2 1 3 . . . . Recycler 2 | 1 . 1 . . . . . Mechanic 1 | . . . 1 . . . . Operator 1 | . . . 1 . . . . Watcher 2 | . 1 . 1 . . . . Swarmer 6 | . 3 . 3 . . . . Grunt 23 | . 7 10 1 . 5 . . Sentry 4 | . . 1 3 . . . . Specialist 1 | . . . . . 1 . . Hunter 3 | . . . 2 . 1 . . Heavy 1 | . . . . . 1 . . Best Kill Streak 8 | 2 8 7 5 . 4 . . Combat Bots Only 6 | . 5 6 4 . 4 . . Max Kills in Single Turn 3 | 1 2 2 3 . 1 . . Gunslinging . | . . . . . . . . Exploded 2 | . 1 1 2 . 1 . . Melee . | . . . . . . . . Uniques/NPCs Destroyed . | . . . . . . . . Combat | -11 -10 -9 -8 -7 -7 -6 -6 -------- Run | Yrd Mat Mat Mat Fac DSF Fac Was Hostile Shots Fired 179 | . 29 19 31 . 60 . 40 Missed 37 | . 9 6 10 . 11 . 1 Hits 142 | . 20 13 21 . 49 . 39 Melee 39 | . . . . . . . 39 Projectile 103 | . 20 13 21 . 49 . . Critical Strikes 26 | . . . . . 5 . 21 Damage Taken 2951 | . 261 190 221 . 847 . 1432 Core 1121 | . 20 . . . 211 . 890 Absorbed by Shields . | . . . . . . . . Ignored by Resistances 821 | . 82 57 62 . 239 . 381 Regen/Repaired (Parts) 84 | . . 38 46 . . . . Core Remaining (%) 92 | 100 92 100 100 . 69 . . Volleys Fired 125 | 11 37 19 29 . 25 . 4 Largest 2 | 2 2 2 2 . 2 . 2 Hottest 126 | 40 112 112 126 . 115 . 112 Shots Fired 202 | 22 60 27 47 . 38 . 8 Gun 81 | 22 35 . 24 . . . . Cannon 85 | . 13 19 16 . 29 . 8 Launcher 36 | . 12 8 7 . 9 . . Special . | . . . . . . . . Kinetic 65 | 22 17 2 1 . 19 . 4 Thermal 58 | . 18 . 26 . 10 . 4 Explosive 36 | . 12 8 7 . 9 . . Electromagnetic 43 | . 13 17 13 . . . . Robot Hit Streak 49 | 11 36 49 23 . 20 . 13 Robot Miss Streak 1 | 1 1 1 1 . 1 . 1 Penetration Max . | . . . . . . . . Secondary Targets . | . . . . . . . . Shots Hit Robots 161 | 20 48 20 37 . 29 . 7 Core Hits 93 | 6 23 19 23 . 21 . 1 Critical Kills . | . . . . . . . . Critical Parts Destroyed . | . . . . . . . . Critical Strikes 3 | . . 1 2 . . . . Burn 1 | . . . 1 . . . . Corrupt 2 | . . 1 1 . . . . Melee Attacks . | . . . . . . . . Impact . | . . . . . . . . Slashing . | . . . . . . . . Piercing . | . . . . . . . . Sneak Attacks . | . . . . . . . . Combat Hostiles . | . . . . . . . . Follow-up Attacks . | . . . . . . . . Damage Inflicted 4639 | 168 1120 697 1045 . 1430 . 179 Guns 880 | 168 304 . 408 . . . . Cannons 1751 | . 264 367 335 . 606 . 179 Explosions 2008 | . 552 330 302 . 824 . . Melee . | . . . . . . . . Ramming . | . . . . . . . . Kinetic 773 | 168 115 15 15 . 356 . 104 Thermal 1068 | . 273 . 470 . 250 . 75 Explosive 1924 | . 468 330 302 . 824 . . Electromagnetic 874 | . 264 352 258 . . . . Impact . | . . . . . . . . Slashing . | . . . . . . . . Piercing . | . . . . . . . . Highest Corruption . | . . . . . . . . Average Corruption . | . . . . . . . . Corruption Purged . | . . . . . . . . Corruption Blocked . | . . . . . . . . Overload Shots . | . . . . . . . . Overflow Damage 69 | . 30 21 18 . . . . Projectiles 21 | . . 21 . . . . . Explosions 48 | . 30 . 18 . . . . Melee . | . . . . . . . . Knockbacks 4 | . . . . . 4 . . Impact . | . . . . . . . . Kinetic 4 | . . . . . 4 . . Secondary . | . . . . . . . . Self-Inflicted Damage 149 | . 89 60 . . . . . Shots 6 | . 4 2 . . . . . Rammed . | . . . . . . . . Targets Rammed . | . . . . . . . . Kicked . | . . . . . . . . Crushed . | . . . . . . . . Highest Temperature 185 | . 185 138 171 . . . 68 Average Temperature 48 | . 49 50 47 . . . 37 Received Heat Transfer 588 | . 108 102 63 . 315 . . Siege Activations . | . . . . . . . . Martial Activations . | . . . . . . . . Shielding Activations . | . . . . . . . . Robots Disrupted . | . . . . . . . . Combat Hostiles . | . . . . . . . . Robots Corrupted . | . . . . . . . . Combat Hostiles . | . . . . . . . . Parts Fried 6 | . 2 3 1 . . . . Impact Corruptions . | . . . . . . . . Robots Melted . | . . . . . . . . Combat Hostiles . | . . . . . . . . Parts Melted 1 | . . . 1 . . . . Heat Transferred 1968 | . 525 . 962 . 370 . 111 Parts Sabotaged . | . . . . . . . . Parts Stolen . | . . . . . . . . Parts Stripped . | . . . . . . . . Power Chain Reactions 1 | . 1 . . . . . . Alert | -11 -10 -9 -8 -7 -7 -6 -6 ------- Run | Yrd Mat Mat Mat Fac DSF Fac Was Maximum Alert Level 1 | . . 1 . . 1 . . Low Security (%) 96 | 100 100 88 100 100 79 100 100 Level 1 3 | . . 11 . . 20 . . Level 2 . | . . . . . . . . Level 3 . | . . . . . . . . Level 4 . | . . . . . . . . Level 5 . | . . . . . . . . High Security . | . . . . . . . . Max Security . | . . . . . . . . Sterilizations 1 | . . . . . 1 . . Peak Influence 235 | 10 168 210 180 . 235 106 18 Initial 106 | . . . 69 . . 106 18 Average 61 | 1 35 113 70 . 122 86 2 Influence Increases 1271 | 15 361 343 317 . 235 . . Destroy 0b10 Robot/C 760 | . 200 220 180 . 160 . . Destroy 0b10 Robot/NC 105 | 15 30 10 35 . 15 . . Destroy Leader 196 | . 46 52 68 . 30 . . Successful Hack 41 | . 30 10 1 . . . . Disable Machine 18 | . 18 . . . . . . Destroy Structure 151 | . 37 51 33 . 30 . . Influence Decreases 1271 | 15 361 150 510 . . 169 66 Entered New Map 301 | . . . 124 . . 129 48 Time Decay 970 | 15 361 150 386 . . 40 18 Squads Dispatched 6 | . 1 2 1 . 2 . . Investigation 3 | . 1 1 1 . . . . Extermination . | . . . . . . . . Reinforcement 3 | . . 1 . . 2 . . Assault . | . . . . . . . . Garrison . | . . . . . . . . Intercept . | . . . . . . . . Searches Triggered . | . . . . . . . . Construction Impeded . | . . . . . . . . Haulers Reinforced . | . . . . . . . . Active Scanning Responses . | . . . . . . . . Cargo Convoy Interrupts . | . . . . . . . . Stealth | -11 -10 -9 -8 -7 -7 -6 -6 --------- Run | Yrd Mat Mat Mat Fac DSF Fac Was Distress Signals 3 | . . 2 1 . . . . Communications Jammed . | . . . . . . . . Distress Signals . | . . . . . . . . Times Spotted 58 | . 15 16 12 . 9 . 6 Peak Tracking Total 8 | . 3 8 4 . 4 . 6 Tactical Retreats . | . . . . . . . . Traps | -11 -10 -9 -8 -7 -7 -6 -6 ------- Run | Yrd Mat Mat Mat Fac DSF Fac Was Traps Triggered 2 | . . . 1 . . 1 . Indirectly . | . . . . . . . . Trap Hack Attempts . | . . . . . . . . Triggered . | . . . . . . . . Disarmed . | . . . . . . . . Reprogrammed 4 | . 4 . . . . . . Reused . | . . . . . . . . Traps Extracted . | . . . . . . . . Installed . | . . . . . . . . Triggered . | . . . . . . . . Machines | -11 -10 -9 -8 -7 -7 -6 -6 ---------- Run | Yrd Mat Mat Mat Fac DSF Fac Was Machines Disabled 2 | . 2 . . . . . . Max in Single Turn 2 | . 2 . . . . . . Machines Repaired . | . . . . . . . . Machines Dismantled . | . . . . . . . . Machines Sabotaged . | . . . . . . . . Overloaded Fab Kills . | . . . . . . . . Hacking | -11 -10 -9 -8 -7 -7 -6 -6 --------- Run | Yrd Mat Mat Mat Fac DSF Fac Was Machines Accessed 14 | . 5 3 5 1 . . . Terminals 12 | . 5 2 4 1 . . . Fabricators . | . . . . . . . . Repair Stations 2 | . . 1 1 . . . . Recycling Units . | . . . . . . . . Scanalyzers . | . . . . . . . . Garrison Access . | . . . . . . . . Total Hacks 31 | . 13 6 11 1 . . . Successful 17 | . 9 2 5 1 . . . Failed 14 | . 4 4 6 . . . . Catastrophic . | . . . . . . . . Database Lockouts . | . . . . . . . . Manual . | . . . . . . . . Terminals 25 | . 13 3 8 1 . . . Fabricators . | . . . . . . . . Repair Stations 6 | . . 3 3 . . . . Recycling Units . | . . . . . . . . Scanalyzers . | . . . . . . . . Garrison Access . | . . . . . . . . Terminal Hacks 13 | . 9 . 3 1 . . . Record 2 | . . . 2 . . . . Prototype ID Bank 2 | . 1 . 1 . . . . Open DSF 1 | . . . . 1 . . . Branch Access Points 1 | . 1 . . . . . . Alert Level 1 | . 1 . . . . . . Locate Traps 1 | . 1 . . . . . . Reprogram Traps 1 | . 1 . . . . . . Transport Status 1 | . 1 . . . . . . Zone Layout 3 | . 3 . . . . . . Fabricator Hacks . | . . . . . . . . Repair Station Hacks 4 | . . 2 2 . . . . Scan Component 2 | . . 1 1 . . . . Repair 2 | . . 1 1 . . . . Recycling Unit Hacks . | . . . . . . . . Scanalyzer . | . . . . . . . . Garrison Access Hacks . | . . . . . . . . Unauthorized Hacks . | . . . . . . . . Terminals . | . . . . . . . . Fabricators . | . . . . . . . . Repair Stations . | . . . . . . . . Recycling Units . | . . . . . . . . Scanalyzers . | . . . . . . . . Garrison Access . | . . . . . . . . Data Cores Recovered 1 | . . . 1 . . . . Used . | . . . . . . . . Hacking Detections 9 | . 2 2 4 1 . . . Full Trace Events 3 | . 1 1 1 . . . . Feedback Events . | . . . . . . . . Feedback Blocked . | . . . . . . . . Robot Schematics Acquired . | . . . . . . . . Robots Built . | . . . . . . . . Authchips . | . . . . . . . . Time . | . . . . . . . . Total Robot Build Rating . | . . . . . . . . Part Schematics Acquired . | . . . . . . . . Parts Built . | . . . . . . . . Authchips . | . . . . . . . . Time . | . . . . . . . . Total Part Build Rating . | . . . . . . . . Parts Repaired 2 | . . 1 1 . . . . Time 42 | . . 16 26 . . . . Parts Recycled . | . . . . . . . . Recycled Matter . | . . . . . . . . Retrieved Matter . | . . . . . . . . Retrieved Components . | . . . . . . . . Parts Scanalyzed . | . . . . . . . . Part Schematics Acquired . | . . . . . . . . Parts Damaged . | . . . . . . . . Bothacking | -11 -10 -9 -8 -7 -7 -6 -6 ------------ Run | Yrd Mat Mat Mat Fac DSF Fac Was Used RIF Installer . | . . . . . . . . Robots Hacked . | . . . . . . . . Non-combat . | . . . . . . . . Combat . | . . . . . . . . Robot Hacks Applied . | . . . . . . . . Relay Couplers Released . | . . . . . . . . Fabnet Peak Effective % . | . . . . . . . . Robots Rewired . | . . . . . . . . Allies Hacked . | . . . . . . . . Hacks Repelled . | . . . . . . . . Allies | -11 -10 -9 -8 -7 -7 -6 -6 -------- Run | Yrd Mat Mat Mat Fac DSF Fac Was Total Allies . | . . . . . . . . Largest Group . | . . . . . . . . Highest-Rated Group . | . . . . . . . . Highest-Rated Ally . | . . . . . . . . Initial Warlord ECA Mod 18 | . . . . . . 9 9 Total Orders . | . . . . . . . . Ally Attacks . | . . . . . . . . Total Damage . | . . . . . . . . Kills . | . . . . . . . . Allies Corrupted . | . . . . . . . . Allies Melted . | . . . . . . . . Intel | -11 -10 -9 -8 -7 -7 -6 -6 ------- Run | Yrd Mat Mat Mat Fac DSF Fac Was Active Infowar (turns) 1073 | 46 701 . 326 . . . . Terrain 1073 | 46 701 . 326 . . . . Robot Analysis Total . | . . . . . . . . Derelict Logs Recovered . | . . . . . . . . Drone Launches . | . . . . . . . . Drone Recoveries . | . . . . . . . . Exploration | -11 -10 -9 -8 -7 -7 -6 -6 ------------- Run | Yrd Mat Mat Mat Fac DSF Fac Was Turns Passed 3497 | 124 1267 453 902 52 367 96 236 Spaces Moved 1591 | 63 517 220 436 30 166 54 105 Core 8 | 8 . . . . . . . Treads 1364 | . 353 220 436 30 166 54 105 Legs 219 | 55 164 . . . . . . Wheels . | . . . . . . . . Hover . | . . . . . . . . Flight . | . . . . . . . . Fastest Speed 50 | 50 120 160 160 160 160 160 160 Average Speed 175 | 123 211 160 160 160 160 160 164 Slowest Speed 260 | 200 260 160 160 160 160 160 166 Overloaded Moves . | . . . . . . . . Propulsion Burnouts . | . . . . . . . . Robots Hopped . | . . . . . . . . Potential Cave-ins 4 | . . . 4 . . . . Cave-ins Triggered . | . . . . . . . . Exploration Rate (%) 34 | 5 66 19 33 1 95 3 56 Regions Visited 7 Branch Regions . Pre-discovered Areas . | . . . . . . . . Known Exits Taken 1 | . . . . 1 . . . Unknown Exits Taken 4 | 1 1 1 1 . . . . Scrap Searched . | . . . . . . . . Spaces Dug 27 | . . 8 19 . . . . Terrain Destroyed 188 | . 39 53 66 . 30 . . Melee . | . . . . . . . . Projectile . | . . . . . . . . AOE 188 | . 39 53 66 . 30 . . Terrain Rammed . | . . . . . . . . Walls Destroyed . | . . . . . . . . Machines Disabled . | . . . . . . . . Actions | -11 -10 -9 -8 -7 -7 -6 -6 --------- Run | Yrd Mat Mat Mat Fac DSF Fac Was Total 2102 | 88 636 296 592 34 232 64 160 Wait 182 | 1 38 30 60 . 6 2 45 Move 1585 | 62 516 219 435 29 165 54 105 Hop . | . . . . . . . . Pick Up 68 | 7 21 9 17 1 11 2 . Fast Attach 19 | 7 3 1 3 1 2 1 1 Attach 11 | . . 3 3 2 1 1 1 Detach 3 | . 1 . 1 1 . . . Swap 47 | . 7 6 23 . 7 2 2 Drop 60 | . 13 9 21 . 13 2 2 Fire 125 | 11 37 19 29 . 25 . 4 Melee . | . . . . . . . . Ram . | . . . . . . . . Kick . | . . . . . . . . Crush . | . . . . . . . . Escape Stasis . | . . . . . . . . Rewire 2 | . . . . . 2 . . Trap . | . . . . . . . . Miscellaneous . | . . . . . . . . Route ------- -11/Scrapyard -10/Materials (discovered 4 exits: *Mat / *Min x2 / [*Sub]) -9/Materials -8/Materials -7/Factory -7/DSF -6/Factory -6/Waste History --------- Turn | Location | Event 21 | -11/Scrapyard | Discovered new exit (range 15) 125 | -11/Scrapyard | Entered Materials 167 | -10/Materials | Discovered new exit (range 6) 300 | -10/Materials | Build established: Mutant 979 | -10/Materials | Discovered new exit (range 3) 1115 | -10/Materials | Identified exit to Mines 1148 | -10/Materials | Discovered new exit (range 12) 1392 | -10/Materials | Entered another Materials area 1392 | -9/Materials | Evolved 2 slots: Propulsion x2 1736 | -9/Materials | Repaired Disposable Heat Sink 1763 | -9/Materials | Discovered new exit (range 16) 1845 | -9/Materials | Entered another Materials area 1845 | -8/Materials | Evolved 2 slots: Utility x2 2284 | -8/Materials | Repaired Lgt. Treads 2496 | -8/Materials | Discovered new exit (range 3) 2747 | -8/Materials | Entered Factory 2747 | -7/Factory | Evolved 2 slots: Utility x2 2797 | -7/Factory | Identified exit to DSF 2799 | -7/Factory | Entered DSF 2858 | -7/DSF | Additional patrols routed to DSF 3142 | -7/DSF | Discovered new exit (range 16) 3144 | -7/DSF | Sterilization system engaged 3164 | -7/DSF | Ambient heat levels rising (+10) 3166 | -7/DSF | Entered Factory 3166 | -6/Factory | Evolved 2 slots: Propulsion x1, Utility x1 3262 | -6/Factory | Sucked down chute 3262 | -6/Factory | Entered Waste 3345 | -6/Waste | Spotted C-40 Crusher 3368 | -6/Waste | Spotted C-40 Crusher 3384 | -6/Waste | Crushed by Compactor (0 parts destroyed, 1 dropped) 3393 | -6/Waste | Spotted C-40 Crusher 3398 | -6/Waste | Crushed by Compactor (1 part destroyed, 1 dropped) 3435 | -6/Waste | Spotted C-40 Crusher 3450 | -6/Waste | Crushed by Compactor (1 part destroyed, 1 dropped) 3453 | -6/Waste | Crushed by Compactor (0 parts destroyed, 1 dropped) 3458 | -6/Waste | Spotted C-40 Crusher 3459 | -6/Waste | Crushed by Compactor (0 parts destroyed, 1 dropped) 3467 | -6/Waste | Crushed by Compactor (1 part destroyed) 3470 | -6/Waste | Crushed by Compactor (0 parts destroyed, 1 dropped) 3474 | -6/Waste | Crushed by Compactor (1 part destroyed, 1 dropped) 3487 | -6/Waste | Core integrity fell below 50% 3489 | -6/Waste | Spotted C-40 Crusher 3493 | -6/Waste | Core integrity fell below 20% 3498 | -6/Waste | Destroyed by C-40 Crusher with Compactor Last Messages --------------- Critical hit (Destroy). Lgt. Treads crushed. Imp. Proton Missile Launcher crushed. Imp. Heat Sink crushed. Lgt. Treads crushed. Critical hit (Destroy). Imp. Proton Missile Launcher crushed. Hcp. Storage Unit crushed. Target Analyzer crushed. Arm. Treads crushed. Target Analyzer crushed. Critical hit (Destroy). Hvy. Armor Plating destroyed. Cryofiber Web crushed. Shock Rifle crushed. Core Analyzer crushed. Cryofiber Web crushed. Critical hit (Destroy). Hvy. Siege Treads destroyed. Adv. Targeting Computer crushed. Map ----- +----------------------------------------------------+ | ?????????????????????????????????????????????????? | | ?????????????????????????????????????????????????? | | ?????????????????????????????????????????????????? | | #####????????????????????????????????????????????? | | #????????????????????????????????????????????? | | #????????????????????????????????????????????? | | #????????????????????????????????????????????? | | #????????????????????????????????????????????? | | #????????????????????????????????????????????? | | #????????????????????????????????????????????? | | #????????????????? ???????????????????????? | | #???????????????? ???????????????????????? | | ###????????????????# #??????????????????????? | | #??????????????????# #??????????????????????? | | #??????????????????# #??????????????????????? | | #??????????????????# #??????????????????????? | | #??????????????##### ###????????????????????? | | #??????????????? ????????????????????? | | #???????????????? ?????????????????????? | | #????????????????? C ?????????????????????? | | #?????????????????? C??????????????????????? | | #??????????????????# #??????????????????????? | | #??????????????????#CC #??????????????????????? | | #??????? ???????#CCCC#??????????????????????? | | #??????# #??????# !CC#????????? ????????????? | | #??????# #??????#=!!@######## #??????????? | | #??????# #??????# CCCC[ = #????????? | | #??????# #??????# CCCC #????????? | | #??????# #??????# CC #????????? | | #??????# #??????# CC #????????? | | #??????# #??????# ######## ###????????? | | #??????# #??????# #????????? #??????????? | | #??????# #??????# #???????????#??????????? | | #??????# #??????# #??????????????????????? | | ######## ######## ######## ??????????????? | | ???????????? | | ???????????? | | ???????????? | | ???????????? | | ######## ######## ######## ????????????? | | #??????# #??????# #????????? ????????????? | | #??????# #??????# #??????????????????????? | | #??????# #??????# #??????????????????????? | | #??????# #??????# #??????????????????????? | | ??????######??????######??????????????????????? | | ?????????????????????????????????????????????? | | #????????????????????????????????????????????? | | ] #????????????????????????????????????????????? | | #????????????????????????????????????????????? | | #????????????????????????????????????????????? | +----------------------------------------------------+ Best States ------------- Heat Dissipation 45 Coolant Potential 50 Energy Generation 18 Energy Capacity 275 Matter Stores 300 Matter Capacity 300 Sight Range 16 Terrain Scan Range 16 Terrain Scan Density 85 Base Temperature (-) 100 Armor Coverage 600 Resistance: KI 20 Resistance: TH 20 Resistance: EX 20 Resistance: EM 20 Resistance: I 20 Resistance: S 20 Resistance: P 20 Evasion (%) 55 Targeting Accuracy 16 Target Analysis 5 Recoil Reduction 5 Offensive Hacking 10 Item Schematics ----------------- None Robot Schematics ------------------ None Fabricated ------------ Nothing Repaired ---------- Disposable Heat Sink | 24% | -9/Materials Lgt. Treads | 67% | -8/Materials Alien Tech Used ----------------- None Achievements -------------- None Challenges ------------ None Game ------ Seed PotentialRecoilStatue Manual? 0 Play Time 01:04:18 Cumulative 48.1 hours Start 2025.10.14 @ 13:37:31 End 2025.10.14 @ 15:18:06 Sessions 11 Manual Loads 0 Difficulty Adventurer Special Mode None Game No. 20 Rogue 0 Adventurer 2 Explorer 18 Win Type - Total 1 Types 1/0/0/0/0/0/0/0/0/0 Lore% 11 Gallery% 35 Achievement% 29 Wizard Run 0 Options --------- Layout 1 ASCII 0 Keyboard 0 Movement Numpad Keybinds 0 Fullscreen 1 Font 24/Smallcaps Map View 50x35 Zoom Use 0% Tactical HUD 0 Map Filters NONE Filters NONE Steam 1 RUN: 97a3c80d-d9d4-45fc-b575-5708a683279a